Workbook

Sheet Juhlien yleiskatsaus
B3: Juhlien yleiskatsaus
B6: TAPAHTUMA | D6: YHTEENVETO VIERAISTA | H6: ="AVOIMET VASTAUSPYYNNÖT: "&OutstandingRSVPs -> AVOIMET VASTAUSPYYNNÖT: 2
B7: Isoäidin 75-vuotissyntymäpäivä | D7: VASTAUSPYYNTÖJEN YLEISKATSAUS | F7: KUSTANNUKSET VIERASTA KOHDEN | H7: BUDJETTI
D8: Vahvistetut vieraat | E8: Vahvistettuja yhteensä | F8: Ruoka | G8: Muut | H8: Yhteensä
B9: PÄIVÄMÄÄRÄ | D9: Aikuiset | E9: =SUMIF(GuestTable[OSALLISTUU?],"=Kyllä",GuestTable[AIKUISET]) -> 26 | F9: =FoodTable[[#Totals],[KUSTANNUS AIKUISTA KOHDEN]] -> 12.69 € | G9: =EssentialCostPerGuest -> 18.70 € | H9: =(AttendeeSummary[[#This Row],[Ruoka]]+AttendeeSummary[[#This Row],[Muut]])*AdultTotal -> 816.03 €
B10: 2011-06-14 | D10: Lapset | E10: =SUMIF(GuestTable[OSALLISTUU?],"=Kyllä",GuestTable[LAPSET]) -> 20 | F10: =FoodTable[[#Totals],[KUSTANNUS LASTA KOHDEN]] -> 7.25 € | G10: =EssentialCostPerGuest -> 18.70 € | H10: =(AttendeeSummary[[#This Row],[Ruoka]]+AttendeeSummary[[#This Row],[Muut]])*ChildrenTotal -> 518.97 €
D11: Yhteensä | E11: =SUBTOTAL(109,AttendeeSummary[Vahvistettuja yhteensä]) -> 46 | F11: ="Keskiarvo. "&TEXT(SUBTOTAL(101,AttendeeSummary[Ruoka]),"# ##0,00 €") -> Keskiarvo. 9,97 € | G11: ="Keskiarvo "&TEXT(SUBTOTAL(101,AttendeeSummary[Muut]),"# ##0,00 €") -> Keskiarvo 18,70 € | H11: =SUBTOTAL(109,AttendeeSummary[Yhteensä]) -> 1,335.00 €
B12: AIKA
B13: klo 14–16.00
B15: SIJAINTI | D15: BUDJETTIYHTEENVETO
B16: Tiina-tädin luona | D16: NIMIKE | E16: LUKUMÄÄRÄ | F16: BUDJETTI | G16: KOKONAISKULUT | H16: ERO
D17: Ruoka ja juoma | E17: =COUNTA(FoodTable[RUOKA- TAI JUOMANIMIKE]) -> 18 | F17: 500.00 € | G17: =FoodTable[[#Totals],[KOKONAISKULUT]] -> 475.00 € | H17: =BudgetOverview[[#This Row],[BUDJETTI]]-BudgetOverview[[#This Row],[KOKONAISKULUT]] -> 25.00 €
D18: =Table1Header -> Laitteet ja tarvikkeet | E18: =COUNTA(Table1Budget[Laitteet ja tarvikkeet]) -> 7 | F18: 400.00 € | G18: =Table1Budget[[#Totals],[Kustannus]] -> 400.00 € | H18: =BudgetOverview[[#This Row],[BUDJETTI]]-BudgetOverview[[#This Row],[KOKONAISKULUT]] -> 0.00 €
D19: =Table2Header -> Koristelut | E19: =COUNTA(Table2Budget[Koristelut]) -> 4 | F19: 150.00 € | G19: =Table2Budget[[#Totals],[Kustannus]] -> 175.00 € | H19: =BudgetOverview[[#This Row],[BUDJETTI]]-BudgetOverview[[#This Row],[KOKONAISKULUT]] -> 25.00 €
D20: =Table3Header -> Muut | E20: =COUNTA(Table3Budget[Muut]) -> 4 | F20: 300.00 € | G20: =Table3Budget[[#Totals],[Kustannus]] -> 285.00 € | H20: =BudgetOverview[[#This Row],[BUDJETTI]]-BudgetOverview[[#This Row],[KOKONAISKULUT]] -> 15.00 €
D21: Yhteensä | E21: =SUBTOTAL(109,BudgetOverview[LUKUMÄÄRÄ]) -> 33 | F21: =SUBTOTAL(109,BudgetOverview[BUDJETTI]) -> 1,350.00 € | G21: =SUBTOTAL(109,BudgetOverview[KOKONAISKULUT]) -> 1,335.00 € | H21: =BudgetOverview[[#Totals],[BUDJETTI]]-BudgetOverview[[#Totals],[KOKONAISKULUT]] -> 15.00 €

Sheet Vierasluettelo
B3: Vierasluettelo
B7: NIMI | C7: OSOITE | D7: POSTITOIMIPAIKKA | E7: KAUPUNKI | F7: POSTINUMERO | G7: PUHELIN | H7: SÄHKÖPOSTI | I7: OSALLISTUU? | J7: LAPSET | K7: AIKUISET | L7: YHTEENSÄ
B8: Perhe 1 | C8: Osoite 1 | D8: Kaupunki 1 | E8: Alue 1 | F8: Postinumero 1 | G8: Puhelin 1 | H8: Sähköposti1 | I8: Ei | J8: 2 | K8: 2 | L8: =SUM(GuestTable[[#This Row],[LAPSET]:[AIKUISET]]) -> 4
B9: Perhe 2 | C9: Osoite 2 | D9: Kaupunki 2 | E9: Alue 2 | F9: Postinumero 2 | G9: Puhelin 2 | H9: Sähköposti2 | I9: Kyllä | J9: 1 | K9: 1 | L9: =SUM(GuestTable[[#This Row],[LAPSET]:[AIKUISET]]) -> 2
B10: Perhe 3 | C10: Osoite 3 | D10: Kaupunki 3 | E10: Alue 3 | F10: Postinumero 3 | G10: Puhelin 3 | H10: Sähköposti3 | I10: Kyllä | J10: 3 | K10: 3 | L10: =SUM(GuestTable[[#This Row],[LAPSET]:[AIKUISET]]) -> 6
B11: Perhe 4 | C11: Osoite 4 | D11: Kaupunki 4 | E11: Alue 4 | F11: Postinumero 4 | G11: Puhelin 4 | H11: Sähköposti4 | K11: 2 | L11: =SUM(GuestTable[[#This Row],[LAPSET]:[AIKUISET]]) -> 2
B12: Perhe 5 | C12: Osoite 5 | D12: Kaupunki 5 | E12: Alue 5 | F12: Postinumero 5 | G12: Puhelin 5 | H12: Sähköposti5 | I12: Kyllä | J12: 4 | K12: 3 | L12: =SUM(GuestTable[[#This Row],[LAPSET]:[AIKUISET]]) -> 7
B13: Perhe 6 | C13: Osoite 6 | D13: Kaupunki 6 | E13: Alue 6 | F13: Postinumero 6 | G13: Puhelin 6 | H13: Sähköposti6 | I13: Kyllä | J13: 2 | K13: 2 | L13: =SUM(GuestTable[[#This Row],[LAPSET]:[AIKUISET]]) -> 4
B14: Perhe 7 | C14: Osoite 7 | D14: Kaupunki 7 | E14: Alue 7 | F14: Postinumero 7 | G14: Puhelin 7 | H14: Sähköposti7 | I14: Kyllä | J14: 1 | K14: 4 | L14: =SUM(GuestTable[[#This Row],[LAPSET]:[AIKUISET]]) -> 5
B15: Perhe 8 | C15: Osoite 8 | D15: Kaupunki 8 | E15: Alue 8 | F15: Postinumero 8 | G15: Puhelin 8 | H15: Sähköposti8 | I15: Ei | J15: 5 | K15: 3 | L15: =SUM(GuestTable[[#This Row],[LAPSET]:[AIKUISET]]) -> 8
B16: Perhe 9 | C16: Osoite 9 | D16: Kaupunki 9 | E16: Alue 9 | F16: Postinumero 9 | G16: Puhelin 9 | H16: Sähköposti9 | I16: Kyllä | J16: 3 | K16: 2 | L16: =SUM(GuestTable[[#This Row],[LAPSET]:[AIKUISET]]) -> 5
B17: Perhe 10 | C17: Osoite 10 | D17: Kaupunki 10 | E17: Alue 10 | F17: Postinumero 10 | G17: Puhelin 10 | H17: Sähköposti10 | I17: Kyllä | K17: 4 | L17: =SUM(GuestTable[[#This Row],[LAPSET]:[AIKUISET]]) -> 4
B18: Perhe 11 | C18: Osoite 11 | D18: Kaupunki 11 | E18: Alue 11 | F18: Postinumero 11 | G18: Puhelin 11 | H18: Sähköposti11 | I18: Kyllä | J18: 3 | K18: 5 | L18: =SUM(GuestTable[[#This Row],[LAPSET]:[AIKUISET]]) -> 8
B19: Perhe 12 | C19: Osoite 12 | D19: Kaupunki 12 | E19: Alue 12 | F19: Postinumero 12 | G19: Puhelin 12 | H19: Sähköposti12 | I19: Ei | J19: 2 | K19: 3 | L19: =SUM(GuestTable[[#This Row],[LAPSET]:[AIKUISET]]) -> 5
B20: Perhe 13 | C20: Osoite 13 | D20: Kaupunki 13 | E20: Alue 13 | F20: Postinumero 13 | G20: Puhelin 13 | H20: Sähköposti13 | I20: Kyllä | J20: 3 | K20: 2 | L20: =SUM(GuestTable[[#This Row],[LAPSET]:[AIKUISET]]) -> 5
B21: Perhe 14 | C21: Osoite 14 | D21: Kaupunki 14 | E21: Alue 14 | F21: Postinumero 14 | G21: Puhelin 14 | H21: Sähköposti14 | I21: Ei | K21: 1 | L21: =SUM(GuestTable[[#This Row],[LAPSET]:[AIKUISET]]) -> 1
B22: Perhe 15 | C22: Osoite 15 | D22: Kaupunki 15 | E22: Alue 15 | F22: Postinumero 15 | G22: Puhelin 15 | H22: Sähköposti15 | K22: 2 | L22: =SUM(GuestTable[[#This Row],[LAPSET]:[AIKUISET]]) -> 2

Sheet Ruoka ja juoma
B3: Ruoka ja juoma
B5: Kirjoita kustannukset ja arvioitu annosten määrä, niin kokonaisannosmäärät ja -kustannukset lasketaan automaattisesti osallistujien mukaan
B6: RUOKA- TAI JUOMANIMIKE | C6: KOKONAISKULUT | D6: LASTEN ANNOKSET | E6: AIKUISTEN ANNOKSET | F6: ANNOKSET YHTEENSÄ | G6: KUSTANNUS ANNOSTA KOHDEN | H6: KUSTANNUS LASTA KOHDEN | I6: KUSTANNUS AIKUISTA KOHDEN | J6: HUOMAUTUKSET
B7: Virvoitusjuomat | C7: 15.00 € | D7: 0.5 | E7: 2 | F7: =(FoodTable[[#This Row],[LASTEN ANNOKSET]]*ChildrenTotal)+(FoodTable[[#This Row],[AIKUISTEN ANNOKSET]]*AdultTotal) -> 62 | G7: =IFERROR(FoodTable[[#This Row],[KOKONAISKULUT]]/FoodTable[[#This Row],[ANNOKSET YHTEENSÄ]],"") -> 0.24 € | H7: =IFERROR(FoodTable[[#This Row],[KUSTANNUS ANNOSTA KOHDEN]]*FoodTable[[#This Row],[LASTEN ANNOKSET]],"") -> 0.12 € | I7: =IFERROR(FoodTable[[#This Row],[KUSTANNUS ANNOSTA KOHDEN]]*FoodTable[[#This Row],[AIKUISTEN ANNOKSET]],"") -> 0.48 € | J7: 2 litran pulloja
B8: Mehupurkit | C8: 15.00 € | D8: 2 | E8: 0 | F8: =(FoodTable[[#This Row],[LASTEN ANNOKSET]]*ChildrenTotal)+(FoodTable[[#This Row],[AIKUISTEN ANNOKSET]]*AdultTotal) -> 40 | G8: =IFERROR(FoodTable[[#This Row],[KOKONAISKULUT]]/FoodTable[[#This Row],[ANNOKSET YHTEENSÄ]],"") -> 0.38 € | H8: =IFERROR(FoodTable[[#This Row],[KUSTANNUS ANNOSTA KOHDEN]]*FoodTable[[#This Row],[LASTEN ANNOKSET]],"") -> 0.75 € | I8: =IFERROR(FoodTable[[#This Row],[KUSTANNUS ANNOSTA KOHDEN]]*FoodTable[[#This Row],[AIKUISTEN ANNOKSET]],"") -> 0.00 € | J8: Omena ja viinirypäleet
B9: Viini | C9: 50.00 € | D9: 0 | E9: 2 | F9: =(FoodTable[[#This Row],[LASTEN ANNOKSET]]*ChildrenTotal)+(FoodTable[[#This Row],[AIKUISTEN ANNOKSET]]*AdultTotal) -> 52 | G9: =IFERROR(FoodTable[[#This Row],[KOKONAISKULUT]]/FoodTable[[#This Row],[ANNOKSET YHTEENSÄ]],"") -> 0.96 € | H9: =IFERROR(FoodTable[[#This Row],[KUSTANNUS ANNOSTA KOHDEN]]*FoodTable[[#This Row],[LASTEN ANNOKSET]],"") -> 0.00 € | I9: =IFERROR(FoodTable[[#This Row],[KUSTANNUS ANNOSTA KOHDEN]]*FoodTable[[#This Row],[AIKUISTEN ANNOKSET]],"") -> 1.92 €
B10: Kakku | C10: 75.00 € | D10: 1 | E10: 1 | F10: =(FoodTable[[#This Row],[LASTEN ANNOKSET]]*ChildrenTotal)+(FoodTable[[#This Row],[AIKUISTEN ANNOKSET]]*AdultTotal) -> 46 | G10: =IFERROR(FoodTable[[#This Row],[KOKONAISKULUT]]/FoodTable[[#This Row],[ANNOKSET YHTEENSÄ]],"") -> 1.63 € | H10: =IFERROR(FoodTable[[#This Row],[KUSTANNUS ANNOSTA KOHDEN]]*FoodTable[[#This Row],[LASTEN ANNOKSET]],"") -> 1.63 € | I10: =IFERROR(FoodTable[[#This Row],[KUSTANNUS ANNOSTA KOHDEN]]*FoodTable[[#This Row],[AIKUISTEN ANNOKSET]],"") -> 1.63 € | J10: Tilaukset paikallisesta leipomosta
B11: Jäätelö | C11: 20.00 € | D11: 1 | E11: 1.5 | F11: =(FoodTable[[#This Row],[LASTEN ANNOKSET]]*ChildrenTotal)+(FoodTable[[#This Row],[AIKUISTEN ANNOKSET]]*AdultTotal) -> 59 | G11: =IFERROR(FoodTable[[#This Row],[KOKONAISKULUT]]/FoodTable[[#This Row],[ANNOKSET YHTEENSÄ]],"") -> 0.34 € | H11: =IFERROR(FoodTable[[#This Row],[KUSTANNUS ANNOSTA KOHDEN]]*FoodTable[[#This Row],[LASTEN ANNOKSET]],"") -> 0.34 € | I11: =IFERROR(FoodTable[[#This Row],[KUSTANNUS ANNOSTA KOHDEN]]*FoodTable[[#This Row],[AIKUISTEN ANNOKSET]],"") -> 0.51 €
B12: Vanukaspurkki | C12: 15.00 € | D12: 1 | E12: 0 | F12: =(FoodTable[[#This Row],[LASTEN ANNOKSET]]*ChildrenTotal)+(FoodTable[[#This Row],[AIKUISTEN ANNOKSET]]*AdultTotal) -> 20 | G12: =IFERROR(FoodTable[[#This Row],[KOKONAISKULUT]]/FoodTable[[#This Row],[ANNOKSET YHTEENSÄ]],"") -> 0.75 € | H12: =IFERROR(FoodTable[[#This Row],[KUSTANNUS ANNOSTA KOHDEN]]*FoodTable[[#This Row],[LASTEN ANNOKSET]],"") -> 0.75 € | I12: =IFERROR(FoodTable[[#This Row],[KUSTANNUS ANNOSTA KOHDEN]]*FoodTable[[#This Row],[AIKUISTEN ANNOKSET]],"") -> 0.00 € | J12: Osta pakattuja purkkeja: vanilja ja suklaa
B13: Täytetyt sienet | C13: 32.00 € | D13: 1 | E13: 2 | F13: =(FoodTable[[#This Row],[LASTEN ANNOKSET]]*ChildrenTotal)+(FoodTable[[#This Row],[AIKUISTEN ANNOKSET]]*AdultTotal) -> 72 | G13: =IFERROR(FoodTable[[#This Row],[KOKONAISKULUT]]/FoodTable[[#This Row],[ANNOKSET YHTEENSÄ]],"") -> 0.44 € | H13: =IFERROR(FoodTable[[#This Row],[KUSTANNUS ANNOSTA KOHDEN]]*FoodTable[[#This Row],[LASTEN ANNOKSET]],"") -> 0.44 € | I13: =IFERROR(FoodTable[[#This Row],[KUSTANNUS ANNOSTA KOHDEN]]*FoodTable[[#This Row],[AIKUISTEN ANNOKSET]],"") -> 0.89 € | J13: Kermajuustolla ja makkaralla täytetyt sienet
B14: Bruschetta-leivät | C14: 22.00 € | D14: 0 | E14: 3 | F14: =(FoodTable[[#This Row],[LASTEN ANNOKSET]]*ChildrenTotal)+(FoodTable[[#This Row],[AIKUISTEN ANNOKSET]]*AdultTotal) -> 78 | G14: =IFERROR(FoodTable[[#This Row],[KOKONAISKULUT]]/FoodTable[[#This Row],[ANNOKSET YHTEENSÄ]],"") -> 0.28 € | H14: =IFERROR(FoodTable[[#This Row],[KUSTANNUS ANNOSTA KOHDEN]]*FoodTable[[#This Row],[LASTEN ANNOKSET]],"") -> 0.00 € | I14: =IFERROR(FoodTable[[#This Row],[KUSTANNUS ANNOSTA KOHDEN]]*FoodTable[[#This Row],[AIKUISTEN ANNOKSET]],"") -> 0.85 € | J14: Tomaatti ja basilika
B15: Savustettu lohi | C15: 50.00 € | D15: 1 | E15: 2 | F15: =(FoodTable[[#This Row],[LASTEN ANNOKSET]]*ChildrenTotal)+(FoodTable[[#This Row],[AIKUISTEN ANNOKSET]]*AdultTotal) -> 72 | G15: =IFERROR(FoodTable[[#This Row],[KOKONAISKULUT]]/FoodTable[[#This Row],[ANNOKSET YHTEENSÄ]],"") -> 0.69 € | H15: =IFERROR(FoodTable[[#This Row],[KUSTANNUS ANNOSTA KOHDEN]]*FoodTable[[#This Row],[LASTEN ANNOKSET]],"") -> 0.69 € | I15: =IFERROR(FoodTable[[#This Row],[KUSTANNUS ANNOSTA KOHDEN]]*FoodTable[[#This Row],[AIKUISTEN ANNOKSET]],"") -> 1.39 €
B16: Minirinkelit | C16: 20.00 € | D16: 1 | E16: 2 | F16: =(FoodTable[[#This Row],[LASTEN ANNOKSET]]*ChildrenTotal)+(FoodTable[[#This Row],[AIKUISTEN ANNOKSET]]*AdultTotal) -> 72 | G16: =IFERROR(FoodTable[[#This Row],[KOKONAISKULUT]]/FoodTable[[#This Row],[ANNOKSET YHTEENSÄ]],"") -> 0.28 € | H16: =IFERROR(FoodTable[[#This Row],[KUSTANNUS ANNOSTA KOHDEN]]*FoodTable[[#This Row],[LASTEN ANNOKSET]],"") -> 0.28 € | I16: =IFERROR(FoodTable[[#This Row],[KUSTANNUS ANNOSTA KOHDEN]]*FoodTable[[#This Row],[AIKUISTEN ANNOKSET]],"") -> 0.56 € | J16: 4 pussia - lajitelma
B17: Kermajuusto | C17: 10.00 € | D17: 1 | E17: 2 | F17: =(FoodTable[[#This Row],[LASTEN ANNOKSET]]*ChildrenTotal)+(FoodTable[[#This Row],[AIKUISTEN ANNOKSET]]*AdultTotal) -> 72 | G17: =IFERROR(FoodTable[[#This Row],[KOKONAISKULUT]]/FoodTable[[#This Row],[ANNOKSET YHTEENSÄ]],"") -> 0.14 € | H17: =IFERROR(FoodTable[[#This Row],[KUSTANNUS ANNOSTA KOHDEN]]*FoodTable[[#This Row],[LASTEN ANNOKSET]],"") -> 0.14 € | I17: =IFERROR(FoodTable[[#This Row],[KUSTANNUS ANNOSTA KOHDEN]]*FoodTable[[#This Row],[AIKUISTEN ANNOKSET]],"") -> 0.28 € | J17: 2 suurta rasiaa
B18: Kaprikset | C18: 12.00 € | D18: 1 | E18: 2 | F18: =(FoodTable[[#This Row],[LASTEN ANNOKSET]]*ChildrenTotal)+(FoodTable[[#This Row],[AIKUISTEN ANNOKSET]]*AdultTotal) -> 72 | G18: =IFERROR(FoodTable[[#This Row],[KOKONAISKULUT]]/FoodTable[[#This Row],[ANNOKSET YHTEENSÄ]],"") -> 0.17 € | H18: =IFERROR(FoodTable[[#This Row],[KUSTANNUS ANNOSTA KOHDEN]]*FoodTable[[#This Row],[LASTEN ANNOKSET]],"") -> 0.17 € | I18: =IFERROR(FoodTable[[#This Row],[KUSTANNUS ANNOSTA KOHDEN]]*FoodTable[[#This Row],[AIKUISTEN ANNOKSET]],"") -> 0.33 € | J18: 3 purkkia
B19: Kanansiivet | C19: 45.00 € | D19: 2 | E19: 4 | F19: =(FoodTable[[#This Row],[LASTEN ANNOKSET]]*ChildrenTotal)+(FoodTable[[#This Row],[AIKUISTEN ANNOKSET]]*AdultTotal) -> 144 | G19: =IFERROR(FoodTable[[#This Row],[KOKONAISKULUT]]/FoodTable[[#This Row],[ANNOKSET YHTEENSÄ]],"") -> 0.31 € | H19: =IFERROR(FoodTable[[#This Row],[KUSTANNUS ANNOSTA KOHDEN]]*FoodTable[[#This Row],[LASTEN ANNOKSET]],"") -> 0.63 € | I19: =IFERROR(FoodTable[[#This Row],[KUSTANNUS ANNOSTA KOHDEN]]*FoodTable[[#This Row],[AIKUISTEN ANNOKSET]],"") -> 1.25 € | J19: Ostokset paikallisesta kaupasta
B20: Hummus | C20: 10.00 € | D20: 4 | E20: 6 | F20: =(FoodTable[[#This Row],[LASTEN ANNOKSET]]*ChildrenTotal)+(FoodTable[[#This Row],[AIKUISTEN ANNOKSET]]*AdultTotal) -> 236 | G20: =IFERROR(FoodTable[[#This Row],[KOKONAISKULUT]]/FoodTable[[#This Row],[ANNOKSET YHTEENSÄ]],"") -> 0.04 € | H20: =IFERROR(FoodTable[[#This Row],[KUSTANNUS ANNOSTA KOHDEN]]*FoodTable[[#This Row],[LASTEN ANNOKSET]],"") -> 0.17 € | I20: =IFERROR(FoodTable[[#This Row],[KUSTANNUS ANNOSTA KOHDEN]]*FoodTable[[#This Row],[AIKUISTEN ANNOKSET]],"") -> 0.25 € | J20: Tee päivää aikaisemmin
B21: Parmesaani-pitavoileipäkeksit | C21: 14.00 € | D21: 4 | E21: 6 | F21: =(FoodTable[[#This Row],[LASTEN ANNOKSET]]*ChildrenTotal)+(FoodTable[[#This Row],[AIKUISTEN ANNOKSET]]*AdultTotal) -> 236 | G21: =IFERROR(FoodTable[[#This Row],[KOKONAISKULUT]]/FoodTable[[#This Row],[ANNOKSET YHTEENSÄ]],"") -> 0.06 € | H21: =IFERROR(FoodTable[[#This Row],[KUSTANNUS ANNOSTA KOHDEN]]*FoodTable[[#This Row],[LASTEN ANNOKSET]],"") -> 0.24 € | I21: =IFERROR(FoodTable[[#This Row],[KUSTANNUS ANNOSTA KOHDEN]]*FoodTable[[#This Row],[AIKUISTEN ANNOKSET]],"") -> 0.36 € | J21: Tee päivää aikaisemmin
B22: Lajitelma vihanneksia | C22: 30.00 € | D22: 4 | E22: 10 | F22: =(FoodTable[[#This Row],[LASTEN ANNOKSET]]*ChildrenTotal)+(FoodTable[[#This Row],[AIKUISTEN ANNOKSET]]*AdultTotal) -> 340 | G22: =IFERROR(FoodTable[[#This Row],[KOKONAISKULUT]]/FoodTable[[#This Row],[ANNOKSET YHTEENSÄ]],"") -> 0.09 € | H22: =IFERROR(FoodTable[[#This Row],[KUSTANNUS ANNOSTA KOHDEN]]*FoodTable[[#This Row],[LASTEN ANNOKSET]],"") -> 0.35 € | I22: =IFERROR(FoodTable[[#This Row],[KUSTANNUS ANNOSTA KOHDEN]]*FoodTable[[#This Row],[AIKUISTEN ANNOKSET]],"") -> 0.88 € | J22: Porkkanatikut, selleri, parsakaali, kukkakaali, punaiset ja vihreät paprikat
B23: Juustopallot | C23: 15.00 € | D23: 5 | E23: 10 | F23: =(FoodTable[[#This Row],[LASTEN ANNOKSET]]*ChildrenTotal)+(FoodTable[[#This Row],[AIKUISTEN ANNOKSET]]*AdultTotal) -> 360 | G23: =IFERROR(FoodTable[[#This Row],[KOKONAISKULUT]]/FoodTable[[#This Row],[ANNOKSET YHTEENSÄ]],"") -> 0.04 € | H23: =IFERROR(FoodTable[[#This Row],[KUSTANNUS ANNOSTA KOHDEN]]*FoodTable[[#This Row],[LASTEN ANNOKSET]],"") -> 0.21 € | I23: =IFERROR(FoodTable[[#This Row],[KUSTANNUS ANNOSTA KOHDEN]]*FoodTable[[#This Row],[AIKUISTEN ANNOKSET]],"") -> 0.42 € | J23: Lajitelma: kermajuusto, pähkinäinen kova juusto
B24: Voileipäkeksit | C24: 25.00 € | D24: 5 | E24: 10 | F24: =(FoodTable[[#This Row],[LASTEN ANNOKSET]]*ChildrenTotal)+(FoodTable[[#This Row],[AIKUISTEN ANNOKSET]]*AdultTotal) -> 360 | G24: =IFERROR(FoodTable[[#This Row],[KOKONAISKULUT]]/FoodTable[[#This Row],[ANNOKSET YHTEENSÄ]],"") -> 0.07 € | H24: =IFERROR(FoodTable[[#This Row],[KUSTANNUS ANNOSTA KOHDEN]]*FoodTable[[#This Row],[LASTEN ANNOKSET]],"") -> 0.35 € | I24: =IFERROR(FoodTable[[#This Row],[KUSTANNUS ANNOSTA KOHDEN]]*FoodTable[[#This Row],[AIKUISTEN ANNOKSET]],"") -> 0.69 € | J24: Lajitelma
B25: Yhteensä | C25: =SUBTOTAL(109,FoodTable[KOKONAISKULUT]) -> 475.00 € | D25: =SUBTOTAL(109,FoodTable[LASTEN ANNOKSET]) -> 34.5 | E25: =SUBTOTAL(109,FoodTable[AIKUISTEN ANNOKSET]) -> 65.5 | F25: =SUBTOTAL(109,FoodTable[ANNOKSET YHTEENSÄ]) -> 2393 | G25: =SUBTOTAL(109,FoodTable[KUSTANNUS ANNOSTA KOHDEN]) -> 6.92 € | H25: =SUBTOTAL(109,FoodTable[KUSTANNUS LASTA KOHDEN]) -> 7.25 € | I25: =SUBTOTAL(109,FoodTable[KUSTANNUS AIKUISTA KOHDEN]) -> 12.69 €

Sheet Muut ostokset
B3: Muut ostokset
B6: Laitteet ja tarvikkeet | C6: Kustannus | D6: Ostettu | E6: Huomautukset
B7: Huoneen/salin vuokra | C7: 250.00 € | D7: Kyllä
B8: Pöytäliinat | C8: 30.00 € | D8: Kyllä | E8: Vuokra
B9: Pöydät ja tuolit | C9: 0.00 € | E9: Sisältyy salin hintaan
B10: Servetit | C10: 25.00 €
B11: Lautasliinat | C11: 20.00 € | E11: Vuokra
B12: Kattaus | C12: 50.00 € | E12: Vuokra
B13: Lasitavara | C13: 25.00 € | E13: Vuokra
B14: Yhteensä | C14: =SUBTOTAL(109,Table1Budget[Kustannus]) -> 400.00 €
B17: Koristelut | C17: Kustannus | D17: Ostettu | E17: Huomautukset
B18: Ilmapallot | C18: 25.00 €
B19: Heliumsäiliö | C19: 50.00 € | E19: Vuokra
B20: Koriste-esineet | C20: 100.00 € | D20: Kyllä | E20: Yhteensä 10
B21: Lasimaljakot | C21: 0.00 € | E21: Lainataan Tanjalta
B22: Yhteensä | C22: =SUBTOTAL(109,Table2Budget[Kustannus]) -> 175.00 €
B25: Muut | C25: Kustannus | D25: Ostettu | E25: Huomautukset
B26: Kutsut | C26: 50.00 € | D26: Kyllä
B27: Postikulut | C27: 60.00 € | D27: Kyllä
B28: Valokuvaaja | C28: 125.00 € | E28: 2 tuntia (klo 14-16.00)
B29: Pikkulahjat | C29: 50.00 €
B30: Yhteensä | C30: =SUBTOTAL(109,Table3Budget[Kustannus]) -> 285.00 €

Sheet Istumajärjestys-ruudukko
A1: Istumajärjestys
AH35: *1 neliö = noin 30 x 30 cm
A36: Huomautukset | T36: ="Vieraita vahvistettu yhteensä: "&ConfirmedGuests -> Vieraita vahvistettu yhteensä: 46
T37: Voit käyttää mitä tahansa seuraavista pöytäkattauksista:
U38: =ROUNDUP(ConfirmedGuests/6,0)&" pyöreää 1,4 metrin pöytää (6 paikkaa)" -> 8 pyöreää 1,4 metrin pöytää (6 paikkaa)
U39: =ROUNDUP(ConfirmedGuests/8,0) &" pyöreää 1,6 metrin pöytää (8 paikkaa)" -> 6 pyöreää 1,6 metrin pöytää (8 paikkaa)
U40: =ROUNDUP(ConfirmedGuests/10,0)&"pyöreää 1,8 metrin pöytää (10 paikkaa)" -> 5pyöreää 1,8 metrin pöytää (10 paikkaa)
U41: =ROUNDUP(ConfirmedGuests/6,0)& " suorakaiteen muotoista 80 x 180 cm:n pöytää (6 paikkaa)" -> 8 suorakaiteen muotoista 80 x 180 cm:n pöytää (6 paikkaa)
U42: =ROUNDUP(ConfirmedGuests/8,0)&" suorakaiteen muotoista 80 x 250 cm:n pöytää (8 paikkaa)" -> 6 suorakaiteen muotoista 80 x 250 cm:n pöytää (8 paikkaa)
T43: (Suositeltava pöytien väli: 1 metri)
